[Event "Titled Tuesday Blitz July 27 2021"]
[White "Nakamura, Hikaru"]
[Black "Ozen, Bahadir"]
[WhiteFideId "2016192"]
[BlackFideId "6337058"]
[WhiteElo "2900"]
[BlackElo "2503"]
[Result "1/2-1/2"]
[Round "04"]
[TimeControl "180+1"]
[Date "2021.07.27"]
[WhiteClock "0:00:17"]
[BlackClock "0:00:16"]

1. Nf3 {[%clk 0:03:00]}  d5 {[%clk 0:02:59]} 2. e3 {[%clk 0:02:59]}  Nf6 {[%clk 0:02:59]} 3. d4 {[%clk 0:02:59]}  e6 {[%clk 0:02:58]} 4. c4 {[%clk 0:02:58]}  Be7 {[%clk 0:02:56]} 5. Nc3 {[%clk 0:02:56]}  O-O {[%clk 0:02:56]} 6. cxd5 {[%clk 0:02:55]}  exd5 {[%clk 0:02:56]} 7. Bd3 {[%clk 0:02:55]}  c6 {[%clk 0:02:43]} 8. O-O {[%clk 0:02:54]}  Bg4 {[%clk 0:02:43]} 9. Qc2 {[%clk 0:02:53]}  Bh5 {[%clk 0:02:42]} 10. Ne5 {[%clk 0:02:50]}  Bg6 {[%clk 0:02:42]} 11. Nxg6 {[%clk 0:02:50]}  hxg6 {[%clk 0:02:43]} 12. Rb1 {[%clk 0:02:49]}  a5 {[%clk 0:02:42]} 13. a3 {[%clk 0:02:50]}  Re8 {[%clk 0:02:39]} 14. b4 {[%clk 0:02:49]}  axb4 {[%clk 0:02:40]} 15. axb4 {[%clk 0:02:50]}  Nbd7 {[%clk 0:02:25]} 16. Ne2 {[%clk 0:02:36]}  Bd6 {[%clk 0:02:25]} 17. g3 {[%clk 0:02:29]}  Rc8 {[%clk 0:01:58]} 18. Bd2 {[%clk 0:02:18]}  b5 {[%clk 0:01:57]} 19. Nc1 {[%clk 0:02:16]}  Nb6 {[%clk 0:01:57]} 20. Nb3 {[%clk 0:02:16]}  Nc4 {[%clk 0:01:57]} 21. Ra1 {[%clk 0:02:17]}  Qd7 {[%clk 0:01:52]} 22. Kg2 {[%clk 0:02:15]}  Ra8 {[%clk 0:01:52]} 23. Rfc1 {[%clk 0:02:09]}  Qe7 {[%clk 0:01:40]} 24. Nc5 {[%clk 0:02:06]}  g5 {[%clk 0:01:38]} 25. h3 {[%clk 0:01:55]}  g6 {[%clk 0:01:38]} 26. Be1 {[%clk 0:01:48]}  Kg7 {[%clk 0:01:34]} 27. Kg1 {[%clk 0:01:38]}  Rh8 {[%clk 0:01:32]} 28. Bf1 {[%clk 0:01:37]}  Rhe8 {[%clk 0:01:25]} 29. Bg2 {[%clk 0:01:37]}  Rh8 {[%clk 0:01:25]} 30. Rd1 {[%clk 0:01:27]}  Rhe8 {[%clk 0:01:25]} 31. Qe2 {[%clk 0:01:25]}  Rh8 {[%clk 0:01:17]} 32. Rdc1 {[%clk 0:01:25]}  Rhe8 {[%clk 0:01:17]} 33. Rcb1 {[%clk 0:01:25]}  Rh8 {[%clk 0:01:18]} 34. Qd1 {[%clk 0:01:24]}  Rhe8 {[%clk 0:01:18]} 35. Rxa8 {[%clk 0:01:23]}  Rxa8 {[%clk 0:01:19]} 36. Ra1 {[%clk 0:01:24]}  Ra7 {[%clk 0:01:18]} 37. Qc1 {[%clk 0:01:23]}  Qc7 {[%clk 0:01:13]} 38. g4 {[%clk 0:01:21]}  Qb8 {[%clk 0:01:08]} 39. Bc3 {[%clk 0:01:18]}  Qa8 {[%clk 0:00:59]} 40. Bf1 {[%clk 0:01:16]}  Rxa1 {[%clk 0:00:58]} 41. Qxa1 {[%clk 0:01:17]}  Qxa1 {[%clk 0:00:58]} 42. Bxa1 {[%clk 0:01:18]}  Kf8 {[%clk 0:00:42]} 43. Bd3 {[%clk 0:01:17]}  Ke7 {[%clk 0:00:42]} 44. Kf1 {[%clk 0:01:16]}  Nd7 {[%clk 0:00:38]} 45. Nxd7 {[%clk 0:01:00]}  Kxd7 {[%clk 0:00:38]} 46. Bc3 {[%clk 0:01:01]}  Ke6 {[%clk 0:00:37]} 47. Ke2 {[%clk 0:01:00]}  Nb6 {[%clk 0:00:25]} 48. f3 {[%clk 0:00:55]}  Na4 {[%clk 0:00:25]} 49. Bd2 {[%clk 0:00:54]}  Nb2 {[%clk 0:00:26]} 50. Bc2 {[%clk 0:00:54]}  Nc4 {[%clk 0:00:26]} 51. Bc3 {[%clk 0:00:54]}  Na3 {[%clk 0:00:26]} 52. Bd3 {[%clk 0:00:53]}  Nc4 {[%clk 0:00:26]} 53. Be1 {[%clk 0:00:44]}  Nb2 {[%clk 0:00:26]} 54. Bc2 {[%clk 0:00:44]}  Nc4 {[%clk 0:00:26]} 55. Bb3 {[%clk 0:00:41]}  Ke7 {[%clk 0:00:23]} 56. Kd3 {[%clk 0:00:39]}  Nb2+ {[%clk 0:00:23]} 57. Ke2 {[%clk 0:00:40]}  Nc4 {[%clk 0:00:24]} 58. Bc2 {[%clk 0:00:40]}  Na3 {[%clk 0:00:23]} 59. Bd3 {[%clk 0:00:40]}  Nc4 {[%clk 0:00:23]} 60. e4 {[%clk 0:00:40]}  Ke6 {[%clk 0:00:23]} 61. e5 {[%clk 0:00:34]}  Be7 {[%clk 0:00:21]} 62. Bc2 {[%clk 0:00:33]}  Bd8 {[%clk 0:00:18]} 63. Kd3 {[%clk 0:00:33]}  Nb2+ {[%clk 0:00:18]} 64. Kc3 {[%clk 0:00:32]}  Nc4 {[%clk 0:00:18]} 65. Bd3 {[%clk 0:00:31]}  Be7 {[%clk 0:00:18]} 66. Kb3 {[%clk 0:00:32]}  Bd8 {[%clk 0:00:18]} 67. Bf2 {[%clk 0:00:31]}  Nd2+ {[%clk 0:00:17]} 68. Kc3 {[%clk 0:00:31]}  Nxf3 {[%clk 0:00:17]} 69. Be2 {[%clk 0:00:31]}  Nh4 {[%clk 0:00:18]} 70. Bf1 {[%clk 0:00:32]}  Be7 {[%clk 0:00:18]} 71. Bg3 {[%clk 0:00:30]}  Nf3 {[%clk 0:00:17]} 72. Bg2 {[%clk 0:00:28]}  Nh4 {[%clk 0:00:17]} 73. Bf1 {[%clk 0:00:28]}  Bd8 {[%clk 0:00:17]} 74. Kd3 {[%clk 0:00:27]}  Bc7 {[%clk 0:00:16]} 75. Bf2 {[%clk 0:00:26]}  Bb6 {[%clk 0:00:16]} 76. Ke3 {[%clk 0:00:25]}  Bd8 {[%clk 0:00:16]} 77. Be1 {[%clk 0:00:24]}  Be7 {[%clk 0:00:16]} 78. Bd2 {[%clk 0:00:25]}  Bd8 {[%clk 0:00:16]} 79. Kf2 {[%clk 0:00:25]}  Be7 {[%clk 0:00:16]} 80. Bd3 {[%clk 0:00:25]}  Bd8 {[%clk 0:00:16]} 81. Be2 {[%clk 0:00:25]}  Be7 {[%clk 0:00:16]} 82. Bf1 {[%clk 0:00:25]}  Bd8 {[%clk 0:00:16]} 83. Ke3 {[%clk 0:00:25]}  Be7 {[%clk 0:00:16]} 84. Be1 {[%clk 0:00:26]}  Bd8 {[%clk 0:00:17]} 85. Bc3 {[%clk 0:00:26]}  Be7 {[%clk 0:00:17]} 86. Bd2 {[%clk 0:00:24]}  Bd8 {[%clk 0:00:16]} 87. Be1 {[%clk 0:00:17]}  Be7 {[%clk 0:00:16]} 88. Bd2 {[%clk 0:00:17]} 1/2-1/2


[Site "https://www.chess.com"]

[Event "Titled Tuesday Blitz July 27 2021"]
[White "Nesterov, Arseniy"]
[Black "Gokerkan, Cem Kaan"]
[WhiteFideId "24198455"]
[BlackFideId "6336760"]
[WhiteElo "2477"]
[BlackElo "2361"]
[Result "1-0"]
[Round "04"]
[TimeControl "180+1"]
[Date "2021.07.27"]
[WhiteClock "0:00:21"]
[BlackClock "0:00:02"]

1. d4 {[%clk 0:03:00]}  Nf6 {[%clk 0:02:59]} 2. c4 {[%clk 0:03:01]}  e6 {[%clk 0:03:00]} 3. Nf3 {[%clk 0:03:01]}  d5 {[%clk 0:03:00]} 4. Nc3 {[%clk 0:03:01]}  Be7 {[%clk 0:03:00]} 5. Bg5 {[%clk 0:03:00]}  h6 {[%clk 0:02:59]} 6. Bh4 {[%clk 0:03:01]}  O-O {[%clk 0:02:44]} 7. e3 {[%clk 0:03:00]}  b6 {[%clk 0:02:42]} 8. Be2 {[%clk 0:02:58]}  Bb7 {[%clk 0:02:40]} 9. Bxf6 {[%clk 0:02:58]}  Bxf6 {[%clk 0:02:40]} 10. cxd5 {[%clk 0:02:58]}  exd5 {[%clk 0:02:40]} 11. b4 {[%clk 0:02:58]}  c5 {[%clk 0:02:37]} 12. bxc5 {[%clk 0:02:57]}  bxc5 {[%clk 0:02:38]} 13. Rb1 {[%clk 0:02:57]}  Qa5 {[%clk 0:02:28]} 14. O-O {[%clk 0:02:56]}  Qxc3 {[%clk 0:02:21]} 15. Rxb7 {[%clk 0:02:55]}  cxd4 {[%clk 0:02:22]} 16. Rb3 {[%clk 0:02:55]}  Qc5 {[%clk 0:02:00]} 17. Rb5 {[%clk 0:02:35]}  Qa3 {[%clk 0:01:41]} 18. Nxd4 {[%clk 0:02:24]}  Rd8 {[%clk 0:01:39]} 19. Bf3 {[%clk 0:02:21]}  Bxd4 {[%clk 0:01:00]} 20. exd4 {[%clk 0:01:54]}  Nc6 {[%clk 0:00:52]} 21. Bxd5 {[%clk 0:01:45]}  Rac8 {[%clk 0:00:51]} 22. Qh5 {[%clk 0:01:08]}  Qe7 {[%clk 0:00:32]} 23. Rd1 {[%clk 0:00:43]}  Nxd4 {[%clk 0:00:28]} 24. Rb7 {[%clk 0:00:43]}  Rc7 {[%clk 0:00:07]} 25. Rxc7 {[%clk 0:00:41]}  Qxc7 {[%clk 0:00:08]} 26. Rxd4 {[%clk 0:00:37]}  Rd7 {[%clk 0:00:06]} 27. Rd1 {[%clk 0:00:30]}  Qb6 {[%clk 0:00:05]} 28. Bb3 {[%clk 0:00:27]}  Re7 {[%clk 0:00:04]} 29. h3 {[%clk 0:00:24]}  g6 {[%clk 0:00:04]} 30. Qd5 {[%clk 0:00:22]}  Kg7 {[%clk 0:00:02]} 31. Qd4+ {[%clk 0:00:21]} 1-0


[Site "https://www.chess.com"]

[Event "Titled Tuesday Blitz July 27 2021"]
[White "Oparin, Grigoriy"]
[Black "Siva Mahadevan"]
[WhiteFideId "24125890"]
[BlackFideId "25043153"]
[WhiteElo "2628"]
[BlackElo "2203"]
[Result "0-1"]
[Round "04"]
[TimeControl "180+1"]
[Date "2021.07.27"]
[WhiteClock "0:00:54"]
[BlackClock "0:01:12"]

1. b3 {[%clk 0:03:00]}  e5 {[%clk 0:02:59]} 2. Bb2 {[%clk 0:03:01]}  Nc6 {[%clk 0:02:59]} 3. c4 {[%clk 0:03:01]}  g6 {[%clk 0:02:58]} 4. g3 {[%clk 0:03:01]}  Bg7 {[%clk 0:02:58]} 5. Bg2 {[%clk 0:03:01]}  Nge7 {[%clk 0:02:59]} 6. Nc3 {[%clk 0:03:02]}  h5 {[%clk 0:02:59]} 7. h3 {[%clk 0:03:01]}  d6 {[%clk 0:02:59]} 8. e3 {[%clk 0:03:01]}  Be6 {[%clk 0:02:57]} 9. Nge2 {[%clk 0:03:01]}  d5 {[%clk 0:02:56]} 10. cxd5 {[%clk 0:03:01]}  Nxd5 {[%clk 0:02:57]} 11. a3 {[%clk 0:03:01]}  Nde7 {[%clk 0:02:55]} 12. d3 {[%clk 0:02:59]}  Qd7 {[%clk 0:02:54]} 13. Qc2 {[%clk 0:02:59]}  O-O-O {[%clk 0:02:53]} 14. Rd1 {[%clk 0:02:58]}  h4 {[%clk 0:02:51]} 15. b4 {[%clk 0:02:45]}  hxg3 {[%clk 0:02:50]} 16. Nxg3 {[%clk 0:02:46]}  Bxh3 {[%clk 0:02:41]} 17. Rxh3 {[%clk 0:02:45]}  Rxh3 {[%clk 0:02:42]} 18. b5 {[%clk 0:02:43]}  Na5 {[%clk 0:02:21]} 19. Bxh3 {[%clk 0:02:21]}  Qxh3 {[%clk 0:02:22]} 20. Qa4 {[%clk 0:02:22]}  b6 {[%clk 0:02:22]} 21. Nce2 {[%clk 0:02:13]}  Nd5 {[%clk 0:02:21]} 22. Rc1 {[%clk 0:02:03]}  Kb8 {[%clk 0:02:21]} 23. Qc2 {[%clk 0:01:50]}  Qd7 {[%clk 0:02:10]} 24. d4 {[%clk 0:01:45]}  exd4 {[%clk 0:02:08]} 25. Nxd4 {[%clk 0:01:46]}  Bxd4 {[%clk 0:02:02]} 26. Bxd4 {[%clk 0:01:47]}  f5 {[%clk 0:02:00]} 27. a4 {[%clk 0:01:45]}  f4 {[%clk 0:01:56]} 28. Rd1 {[%clk 0:01:23]}  fxg3 {[%clk 0:01:54]} 29. fxg3 {[%clk 0:01:18]}  Qd6 {[%clk 0:01:52]} 30. Kf2 {[%clk 0:01:15]}  Rf8+ {[%clk 0:01:43]} 31. Kg2 {[%clk 0:01:15]}  Qe6 {[%clk 0:01:43]} 32. e4 {[%clk 0:01:13]}  Nf6 {[%clk 0:01:44]} 33. Rf1 {[%clk 0:01:08]}  Nc4 {[%clk 0:01:25]} 34. Qc3 {[%clk 0:00:58]}  Qxe4+ {[%clk 0:01:24]} 35. Kg1 {[%clk 0:00:58]}  Rh8 {[%clk 0:01:23]} 36. Rf3 {[%clk 0:00:54]}  Nd2 {[%clk 0:01:12]} 0-1


[Site "https://www.chess.com"]

[Event "Titled Tuesday Blitz July 27 2021"]
[White "Ovchinnikov, Vsevolod"]
[Black "Yilmaz, Mustafa"]
[WhiteFideId "24176842"]
[BlackFideId "6302718"]
[WhiteElo "2376"]
[BlackElo "2518"]
[Result "0-1"]
[Round "04"]
[TimeControl "180+1"]
[Date "2021.07.27"]
[WhiteClock "0:00:02"]
[BlackClock "0:01:05"]

1. d4 {[%clk 0:02:58]}  Nf6 {[%clk 0:02:59]} 2. c4 {[%clk 0:02:58]}  e6 {[%clk 0:02:55]} 3. g3 {[%clk 0:02:58]}  Bb4+ {[%clk 0:02:51]} 4. Bd2 {[%clk 0:02:58]}  c5 {[%clk 0:02:49]} 5. Bxb4 {[%clk 0:02:56]}  cxb4 {[%clk 0:02:49]} 6. Bg2 {[%clk 0:02:56]}  O-O {[%clk 0:02:49]} 7. e4 {[%clk 0:02:56]}  d6 {[%clk 0:02:49]} 8. Ne2 {[%clk 0:02:55]}  e5 {[%clk 0:02:48]} 9. O-O {[%clk 0:02:54]}  a5 {[%clk 0:02:46]} 10. Qd3 {[%clk 0:02:50]}  Nc6 {[%clk 0:02:42]} 11. Nd2 {[%clk 0:02:43]}  Qb6 {[%clk 0:02:40]} 12. d5 {[%clk 0:01:47]}  Nb8 {[%clk 0:02:32]} 13. a3 {[%clk 0:01:48]}  Na6 {[%clk 0:02:32]} 14. axb4 {[%clk 0:01:46]}  Qxb4 {[%clk 0:02:27]} 15. Qc3 {[%clk 0:01:44]}  b6 {[%clk 0:02:24]} 16. Qxb4 {[%clk 0:01:37]}  Nxb4 {[%clk 0:02:23]} 17. Rfc1 {[%clk 0:01:33]}  Nd7 {[%clk 0:02:21]} 18. Nb3 {[%clk 0:01:25]}  Ba6 {[%clk 0:02:18]} 19. Rc3 {[%clk 0:01:06]}  Rfb8 {[%clk 0:02:08]} 20. Nd2 {[%clk 0:01:07]}  Nc5 {[%clk 0:02:08]} 21. Bf1 {[%clk 0:01:02]}  Bc8 {[%clk 0:02:03]} 22. f3 {[%clk 0:01:01]}  f5 {[%clk 0:02:01]} 23. exf5 {[%clk 0:00:56]}  Bxf5 {[%clk 0:02:00]} 24. Nb3 {[%clk 0:00:38]}  Ncd3 {[%clk 0:01:54]} 25. Nec1 {[%clk 0:00:15]}  Nxb2 {[%clk 0:01:48]} 26. Nd2 {[%clk 0:00:14]}  Nd1 {[%clk 0:01:42]} 27. Rb3 {[%clk 0:00:10]}  Nc2 {[%clk 0:01:43]} 28. Ra2 {[%clk 0:00:08]}  a4 {[%clk 0:01:41]} 29. Rba3 {[%clk 0:00:05]}  Nxa3 {[%clk 0:01:38]} 30. Rxa3 {[%clk 0:00:06]}  Rc8 {[%clk 0:01:23]} 31. Na2 {[%clk 0:00:06]}  Bc2 {[%clk 0:01:19]} 32. Nb4 {[%clk 0:00:05]}  Bf5 {[%clk 0:01:10]} 33. Nc6 {[%clk 0:00:05]}  Kf8 {[%clk 0:01:10]} 34. Be2 {[%clk 0:00:04]}  Nb2 {[%clk 0:01:10]} 35. Kf2 {[%clk 0:00:04]}  Bd7 {[%clk 0:01:10]} 36. Nb4 {[%clk 0:00:04]}  Ra5 {[%clk 0:01:08]} 37. Ke3 {[%clk 0:00:03]}  b5 {[%clk 0:01:08]} 38. Nc6 {[%clk 0:00:02]}  Bxc6 {[%clk 0:01:08]} 39. dxc6 {[%clk 0:00:03]}  b4 {[%clk 0:01:08]} 40. Ra2 {[%clk 0:00:03]}  a3 {[%clk 0:01:07]} 41. Nb3 {[%clk 0:00:03]}  Ra7 {[%clk 0:01:07]} 42. c5 {[%clk 0:00:02]}  Rxc6 {[%clk 0:01:05]} 0-1


[Site "https://www.chess.com"]

[Event "Titled Tuesday Blitz July 27 2021"]
[White "Parkhov, Yair"]
[Black "Samadov, Read"]
[WhiteFideId "2813408"]
[BlackFideId "13417444"]
[WhiteElo "2131"]
[BlackElo "2084"]
[Result "1-0"]
[Round "04"]
[TimeControl "180+1"]
[Date "2021.07.27"]
[WhiteClock "0:00:06"]
[BlackClock "0:00:03"]

1. d4 {[%clk 0:03:00]}  Nf6 {[%clk 0:02:59]} 2. c4 {[%clk 0:02:59]}  e6 {[%clk 0:02:59]} 3. Nc3 {[%clk 0:02:52]}  Bb4 {[%clk 0:02:58]} 4. Qc2 {[%clk 0:02:51]}  d5 {[%clk 0:02:56]} 5. a3 {[%clk 0:02:49]}  Bxc3+ {[%clk 0:02:55]} 6. Qxc3 {[%clk 0:02:50]}  O-O {[%clk 0:02:54]} 7. Bg5 {[%clk 0:02:34]}  dxc4 {[%clk 0:02:52]} 8. Qxc4 {[%clk 0:02:27]}  b6 {[%clk 0:02:52]} 9. Nf3 {[%clk 0:02:14]}  Ba6 {[%clk 0:02:51]} 10. Qa4 {[%clk 0:02:09]}  h6 {[%clk 0:02:51]} 11. Bxf6 {[%clk 0:02:07]}  Qxf6 {[%clk 0:02:51]} 12. g3 {[%clk 0:02:02]}  Bb7 {[%clk 0:02:49]} 13. Bg2 {[%clk 0:02:01]}  Rd8 {[%clk 0:02:47]} 14. O-O {[%clk 0:01:57]}  Nd7 {[%clk 0:02:47]} 15. Rfd1 {[%clk 0:01:53]}  c5 {[%clk 0:02:47]} 16. Ne5 {[%clk 0:01:48]}  Bxg2 {[%clk 0:02:22]} 17. Nxd7 {[%clk 0:01:41]}  Qe7 {[%clk 0:02:22]} 18. dxc5 {[%clk 0:01:37]}  Bd5 {[%clk 0:02:17]} 19. c6 {[%clk 0:01:32]}  Rac8 {[%clk 0:02:06]} 20. Rac1 {[%clk 0:01:29]}  f5 {[%clk 0:01:11]} 21. Ne5 {[%clk 0:01:15]}  Qc7 {[%clk 0:01:05]} 22. f4 {[%clk 0:01:01]}  Rd6 {[%clk 0:01:01]} 23. b4 {[%clk 0:00:55]}  Bxc6 {[%clk 0:00:40]} 24. Rxd6 {[%clk 0:00:41]}  Bxa4 {[%clk 0:00:38]} 25. Rxc7 {[%clk 0:00:40]}  Rxc7 {[%clk 0:00:39]} 26. Rxe6 {[%clk 0:00:38]}  Rc3 {[%clk 0:00:38]} 27. Rd6 {[%clk 0:00:31]}  Rxa3 {[%clk 0:00:34]} 28. Rd8+ {[%clk 0:00:31]}  Kh7 {[%clk 0:00:35]} 29. Kf2 {[%clk 0:00:30]}  Rb3 {[%clk 0:00:33]} 30. h4 {[%clk 0:00:29]}  h5 {[%clk 0:00:33]} 31. Nf7 {[%clk 0:00:26]}  Kg6 {[%clk 0:00:31]} 32. Ne5+ {[%clk 0:00:21]}  Kf6 {[%clk 0:00:31]} 33. Rd6+ {[%clk 0:00:17]}  Ke7 {[%clk 0:00:30]} 34. Rg6 {[%clk 0:00:17]}  Kf8 {[%clk 0:00:28]} 35. Rg5 {[%clk 0:00:17]}  Rxb4 {[%clk 0:00:28]} 36. Rxf5+ {[%clk 0:00:17]}  Kg8 {[%clk 0:00:28]} 37. Ng6 {[%clk 0:00:10]}  Kh7 {[%clk 0:00:14]} 38. Ne7 {[%clk 0:00:09]}  Be8 {[%clk 0:00:11]} 39. Rf8 {[%clk 0:00:09]}  Bd7 {[%clk 0:00:10]} 40. Rd8 {[%clk 0:00:07]}  Bg4 {[%clk 0:00:11]} 41. Nc6 {[%clk 0:00:05]}  Re4 {[%clk 0:00:10]} 42. e3 {[%clk 0:00:04]}  a5 {[%clk 0:00:09]} 43. Ne5 {[%clk 0:00:04]}  a4 {[%clk 0:00:07]} 44. Nf7 {[%clk 0:00:04]}  Kg6 {[%clk 0:00:07]} 45. Ng5 {[%clk 0:00:04]}  Rb4 {[%clk 0:00:03]} 46. Rd6+ {[%clk 0:00:05]}  Kf5 {[%clk 0:00:04]} 47. e4+ {[%clk 0:00:04]}  Rxe4 {[%clk 0:00:04]} 48. Rd5+ {[%clk 0:00:05]}  Kf6 {[%clk 0:00:03]} 49. Nxe4+ {[%clk 0:00:05]}  Ke7 {[%clk 0:00:04]} 50. Rd6 {[%clk 0:00:06]}  Bf5 {[%clk 0:00:03]} 51. Rd4 {[%clk 0:00:06]}  a3 {[%clk 0:00:04]} 52. Nd6 {[%clk 0:00:06]}  a2 {[%clk 0:00:03]} 53. Nxf5+ {[%clk 0:00:06]}  Kf6 {[%clk 0:00:04]} 54. Ra4 {[%clk 0:00:06]}  a1=Q {[%clk 0:00:03]} 55. Rxa1 {[%clk 0:00:06]} 1-0


[Site "https://www.chess.com"]

[Event "Titled Tuesday Blitz July 27 2021"]
[White "Potapova, Margarita"]
[Black "Rangel, Daniel"]
[WhiteFideId "14126869"]
[BlackFideId "2124475"]
[WhiteElo "2229"]
[BlackElo "2187"]
[Result "1/2-1/2"]
[Round "04"]
[TimeControl "180+1"]
[Date "2021.07.27"]
[WhiteClock "0:00:05"]
[BlackClock "0:00:12"]

1. Nf3 {[%clk 0:03:00]}  Nf6 {[%clk 0:02:59]} 2. b3 {[%clk 0:03:00]}  g6 {[%clk 0:02:59]} 3. Bb2 {[%clk 0:03:01]}  Bg7 {[%clk 0:03:00]} 4. g3 {[%clk 0:03:01]}  O-O {[%clk 0:03:01]} 5. Bg2 {[%clk 0:03:02]}  d5 {[%clk 0:03:01]} 6. O-O {[%clk 0:03:01]}  c5 {[%clk 0:03:01]} 7. c4 {[%clk 0:03:01]}  d4 {[%clk 0:02:54]} 8. e3 {[%clk 0:03:00]}  Nc6 {[%clk 0:02:54]} 9. exd4 {[%clk 0:02:58]}  cxd4 {[%clk 0:02:54]} 10. Re1 {[%clk 0:02:58]}  Re8 {[%clk 0:02:51]} 11. Na3 {[%clk 0:02:56]}  e5 {[%clk 0:02:49]} 12. d3 {[%clk 0:02:56]}  e4 {[%clk 0:02:43]} 13. dxe4 {[%clk 0:02:37]}  Nxe4 {[%clk 0:02:41]} 14. Nb5 {[%clk 0:02:37]}  Nc3 {[%clk 0:02:29]} 15. Qd2 {[%clk 0:02:11]}  Rxe1+ {[%clk 0:02:10]} 16. Rxe1 {[%clk 0:02:10]}  Bg4 {[%clk 0:01:11]} 17. Nxc3 {[%clk 0:02:05]}  dxc3 {[%clk 0:00:57]} 18. Bxc3 {[%clk 0:02:06]}  Qxd2 {[%clk 0:00:55]} 19. Bxd2 {[%clk 0:02:05]}  Rd8 {[%clk 0:00:55]} 20. Be3 {[%clk 0:02:05]}  Nb4 {[%clk 0:00:51]} 21. Bxa7 {[%clk 0:01:54]}  Nc2 {[%clk 0:00:37]} 22. Rc1 {[%clk 0:01:16]}  Bh6 {[%clk 0:00:18]} 23. Rxc2 {[%clk 0:01:09]}  Rd1+ {[%clk 0:00:17]} 24. Bf1 {[%clk 0:01:10]}  Bh3 {[%clk 0:00:17]} 25. Kh1 {[%clk 0:01:00]}  Rxf1+ {[%clk 0:00:17]} 26. Ng1 {[%clk 0:01:00]}  Bf5 {[%clk 0:00:08]} 27. Re2 {[%clk 0:00:57]}  Bg4 {[%clk 0:00:08]} 28. Re8+ {[%clk 0:00:55]}  Kg7 {[%clk 0:00:08]} 29. Kg2 {[%clk 0:00:55]}  Ra1 {[%clk 0:00:07]} 30. h3 {[%clk 0:00:53]}  Bd7 {[%clk 0:00:07]} 31. Re2 {[%clk 0:00:53]}  Bc6+ {[%clk 0:00:06]} 32. Nf3 {[%clk 0:00:48]}  Rd1 {[%clk 0:00:04]} 33. Be3 {[%clk 0:00:43]}  Bxe3 {[%clk 0:00:03]} 34. fxe3 {[%clk 0:00:44]}  Rd3 {[%clk 0:00:03]} 35. Kf2 {[%clk 0:00:43]}  Rc3 {[%clk 0:00:04]} 36. Nd4 {[%clk 0:00:42]}  Be4 {[%clk 0:00:04]} 37. Nb5 {[%clk 0:00:41]}  Rd3 {[%clk 0:00:04]} 38. Nd4 {[%clk 0:00:39]}  f5 {[%clk 0:00:05]} 39. Nf3 {[%clk 0:00:38]}  Kf6 {[%clk 0:00:05]} 40. h4 {[%clk 0:00:33]}  Rd1 {[%clk 0:00:05]} 41. Nd2 {[%clk 0:00:26]}  Ra1 {[%clk 0:00:05]} 42. Nxe4+ {[%clk 0:00:26]}  fxe4 {[%clk 0:00:06]} 43. Rd2 {[%clk 0:00:26]}  Kf5 {[%clk 0:00:06]} 44. Kg2 {[%clk 0:00:24]}  Kg4 {[%clk 0:00:06]} 45. Rf2 {[%clk 0:00:24]}  g5 {[%clk 0:00:04]} 46. hxg5 {[%clk 0:00:23]}  Kxg5 {[%clk 0:00:05]} 47. Rc2 {[%clk 0:00:20]}  h5 {[%clk 0:00:04]} 48. c5 {[%clk 0:00:21]}  Kg4 {[%clk 0:00:04]} 49. b4 {[%clk 0:00:19]}  Re1 {[%clk 0:00:04]} 50. b5 {[%clk 0:00:17]}  Rxe3 {[%clk 0:00:04]} 51. c6 {[%clk 0:00:18]}  Rxg3+ {[%clk 0:00:05]} 52. Kf2 {[%clk 0:00:16]}  bxc6 {[%clk 0:00:05]} 53. bxc6 {[%clk 0:00:16]}  Rf3+ {[%clk 0:00:06]} 54. Kg2 {[%clk 0:00:15]}  Rf8 {[%clk 0:00:07]} 55. c7 {[%clk 0:00:15]}  Rc8 {[%clk 0:00:07]} 56. a4 {[%clk 0:00:15]}  h4 {[%clk 0:00:08]} 57. a5 {[%clk 0:00:15]}  h3+ {[%clk 0:00:08]} 58. Kh2 {[%clk 0:00:06]}  Kf3 {[%clk 0:00:08]} 59. a6 {[%clk 0:00:06]}  e3 {[%clk 0:00:09]} 60. a7 {[%clk 0:00:06]}  e2 {[%clk 0:00:09]} 61. Rc3+ {[%clk 0:00:03]}  Kf2 {[%clk 0:00:09]} 62. Rc2 {[%clk 0:00:03]}  Kf1 {[%clk 0:00:09]} 63. a8=Q {[%clk 0:00:04]}  Rxa8 {[%clk 0:00:09]} 64. c8=Q {[%clk 0:00:04]}  Rxc8 {[%clk 0:00:09]} 65. Rxc8 {[%clk 0:00:05]}  e1=Q {[%clk 0:00:10]} 66. Rf8+ {[%clk 0:00:05]}  Qf2+ {[%clk 0:00:11]} 67. Rxf2+ {[%clk 0:00:05]}  Kxf2 {[%clk 0:00:12]} 68. Kxh3 {[%clk 0:00:05]} 1/2-1/2


[Site "https://www.chess.com"]

[Event "Titled Tuesday Blitz July 27 2021"]
[White "Pourkashiyan, Atousa"]
[Black "Vasquez Schroeder, Rodrigo"]
[WhiteFideId "12502014"]
[BlackFideId "3400042"]
[WhiteElo "2285"]
[BlackElo "2572"]
[Result "0-1"]
[Round "04"]
[TimeControl "180+1"]
[Date "2021.07.27"]
[WhiteClock "0:00:05"]
[BlackClock "0:00:38"]

1. e4 {[%clk 0:03:00]}  c5 {[%clk 0:02:59]} 2. Nf3 {[%clk 0:02:58]}  d6 {[%clk 0:02:59]} 3. d4 {[%clk 0:02:57]}  cxd4 {[%clk 0:03:00]} 4. Nxd4 {[%clk 0:02:58]}  Nf6 {[%clk 0:03:00]} 5. Nc3 {[%clk 0:02:58]}  a6 {[%clk 0:03:00]} 6. Be2 {[%clk 0:02:57]}  e6 {[%clk 0:03:00]} 7. O-O {[%clk 0:02:50]}  Be7 {[%clk 0:03:00]} 8. f4 {[%clk 0:02:50]}  O-O {[%clk 0:02:59]} 9. Be3 {[%clk 0:02:49]}  Qc7 {[%clk 0:02:59]} 10. a4 {[%clk 0:02:49]}  b6 {[%clk 0:02:59]} 11. Bd3 {[%clk 0:02:48]}  Bb7 {[%clk 0:02:59]} 12. Qf3 {[%clk 0:02:48]}  Nbd7 {[%clk 0:02:59]} 13. Rae1 {[%clk 0:02:48]}  Nc5 {[%clk 0:02:59]} 14. Kh1 {[%clk 0:02:49]}  g6 {[%clk 0:02:59]} 15. Bg1 {[%clk 0:02:48]}  e5 {[%clk 0:02:59]} 16. Nde2 {[%clk 0:01:52]}  Kh8 {[%clk 0:02:34]} 17. Be3 {[%clk 0:01:36]}  Nxd3 {[%clk 0:02:23]} 18. cxd3 {[%clk 0:01:36]}  Kg7 {[%clk 0:01:54]} 19. Ng3 {[%clk 0:01:18]}  h6 {[%clk 0:01:40]} 20. Nge2 {[%clk 0:01:08]}  Rac8 {[%clk 0:01:36]} 21. Qh3 {[%clk 0:01:06]}  Rh8 {[%clk 0:01:35]} 22. Bf2 {[%clk 0:00:59]}  Qd7 {[%clk 0:01:33]} 23. Qf3 {[%clk 0:00:50]}  Qg4 {[%clk 0:01:20]} 24. Bxb6 {[%clk 0:00:48]}  Qxf3 {[%clk 0:01:20]} 25. Rxf3 {[%clk 0:00:49]}  Nd7 {[%clk 0:01:16]} 26. Be3 {[%clk 0:00:40]}  f5 {[%clk 0:01:16]} 27. Rff1 {[%clk 0:00:37]}  Bc6 {[%clk 0:01:13]} 28. Rc1 {[%clk 0:00:35]}  Rb8 {[%clk 0:01:12]} 29. Rc2 {[%clk 0:00:33]}  Rhf8 {[%clk 0:01:06]} 30. Rfc1 {[%clk 0:00:26]}  Rb7 {[%clk 0:01:03]} 31. Nd5 {[%clk 0:00:20]}  Bxd5 {[%clk 0:01:01]} 32. exd5 {[%clk 0:00:21]}  Nf6 {[%clk 0:00:56]} 33. fxe5 {[%clk 0:00:17]}  dxe5 {[%clk 0:00:56]} 34. Rc7 {[%clk 0:00:07]}  Rxc7 {[%clk 0:00:56]} 35. Rxc7 {[%clk 0:00:08]}  Nxd5 {[%clk 0:00:56]} 36. Rd7 {[%clk 0:00:09]}  Nxe3 {[%clk 0:00:48]} 37. Rxe7+ {[%clk 0:00:09]}  Kf6 {[%clk 0:00:47]} 38. Ra7 {[%clk 0:00:10]}  Rb8 {[%clk 0:00:43]} 39. Rxa6+ {[%clk 0:00:09]}  Kg5 {[%clk 0:00:44]} 40. h3 {[%clk 0:00:07]}  Rxb2 {[%clk 0:00:43]} 41. Nc3 {[%clk 0:00:05]}  Rc2 {[%clk 0:00:41]} 42. Nb5 {[%clk 0:00:05]}  Rc1+ {[%clk 0:00:38]} 43. Kh2 {[%clk 0:00:05]}  Nf1+ {[%clk 0:00:38]} 44. Kg1 {[%clk 0:00:05]}  Ng3+ {[%clk 0:00:39]} 45. Kf2 {[%clk 0:00:05]}  Kf4 {[%clk 0:00:38]} 0-1


[Site "https://www.chess.com"]